Cogmind - Beta 14 @@@ ROGUE MODE // 2024.12.10 @ 11:41:36 Player: Loumardes Result: Destroyed by X6-LOD(R) with Subdweller Machine Gun Performance ------------- Evolutions (0) 0 Regions Visited (3) 600 Robots Destroyed (22) 110 Value Destroyed (446) 446 Prototype IDs (1) 20 Alien Tech Used (0) 0 Bonus (-146) -146 TOTAL SCORE: 1030 Bonus ------- Friendly Fire -146 Cogmind --------- Core Integrity 0/250 Matter 207/300 Energy 125/125 System Corruption 1% Temperature Cool (6) Movement Rolling (105) Ox1 Location -10/Subcaves Parts ------- > --- POWER (1) -------- Light Ion Engine > --- PROPULSION (2) --- Wheel (fused) Compact Wheel > --- UTILITY (2) ------ Large Storage Unit Signal Interpreter > --- WEAPON (2) ------- EM Pulse Gun Light Cannon > --- INVENTORY (15) --- Ion Engine Light Ion Engine Wheel Heat Sink Improved Heat Sink Machine Analyzer Sensor Array Sensor Drone Bay (20/20) Light Cannon Light Cannon Grenade Launcher Datajack Hammer Peak State ------------ > --- POWER ------------ Light Ion Engine > --- PROPULSION ------- Wheel Compact Wheel > --- UTILITY ---------- Signal Interpreter Sensor Drone Bay > --- WEAPON ----------- EM Pulse Gun Light Cannon > --- INVENTORY -------- Light Ion Engine Wheel Heat Sink Light Cannon Datajack [Rating: 14] Favorites ----------- Power Light Ion Engine Engine Light Ion Engine Propulsion Compact Wheel Wheel Compact Wheel Utility Signal Interpreter Device Sensor Drone Bay Storage Large Storage Unit Processor Signal Interpreter Weapon EM Pulse Gun Energy Gun EM Pulse Gun Energy Cannon Beam Cannon Ballistic Cannon Light Cannon Impact Weapon Hammer Special Melee Weapon Datajack Build | -11 -10 -10 -10 ------- Run | Yrd Mat Min Sub Slots Evolved . | . . . . Power . | . . . . Propulsion . | . . . . Utility . | . . . . Weapon . | . . . . Parts Attached 24 | 6 13 5 . Power 3 | 1 2 . . Engine 3 | 1 2 . . Core . | . . . . Reactor . | . . . . Propulsion 3 | 2 1 . . Treads . | . . . . Leg . | . . . . Wheel 3 | 2 1 . . Hover . | . . . . Flight . | . . . . Utility 7 | 1 4 2 . Device 2 | . 1 1 . Storage 4 | 1 2 1 . Processor 1 | . 1 . . Hackware . | . . . . Protection . | . . . . Artifact . | . . . . Weapon 11 | 2 6 3 . Energy Gun 4 | 2 2 . . Energy Cannon 1 | . 1 . . Ballistic Gun . | . . . . Ballistic Cannon 4 | . 2 2 . Launcher . | . . . . Special Weapon . | . . . . Impact Weapon 1 | . 1 . . Slashing Weapon . | . . . . Piercing Weapon . | . . . . Special Melee Weapon 1 | . . 1 . Unidentified Prototypes 1 | . . 1 . Parts Lost 5 | . 5 . . Power 2 | . 2 . . Propulsion 1 | . 1 . . Utility . | . . . . Weapon 2 | . 2 . . Highest Loss Streak 2 | . 2 . . To Critical Strikes . | . . . . Average Slot Usage (%) 96 | . 93 100 100 Engine 12 | . 10 14 14 Wheel 27 | . 27 28 28 Device 4 | . . 10 . Storage 9 | . 13 3 14 Processor 12 | . 12 14 14 Energy Gun 12 | . 11 14 14 Energy Cannon 3 | . 7 . . Ballistic Cannon 9 | . 8 10 14 Special Melee Weapon 1 | . . 3 . Peak Build Rating 14 | 6 9 14 9 Average Rating 9 | 4 7 12 9 On Entrance 5 | . 6 8 9 Naked Turns . | . . . . Heaviest Build 31 | 14 31 28 28 Greatest Support 32 | 32 32 26 26 Greatest Overweight (x) 1 | . 1 1 1 Average Overweight (x) . | . . . 1 Largest Inventory Capacity 15 | 8 15 15 15 Average Capacity 10 | 7 13 7 15 Most Carried 13 | 2 13 13 13 Average Carried 7 | . 8 6 13 Final Capacity 15 | 8 15 15 15 Final Carried 13 | 2 12 13 13 Class Distribution -------------------- 100% | Mutant Dominant Class ---------------- Mutant | -10/Materials Mutant | -10/Mines Mutant | -10/Subcaves Resources | -11 -10 -10 -10 ----------- Run | Yrd Mat Min Sub Matter Collected 504 | 178 228 98 . Remotely . | . . . . Salvage Created 700 | . 612 42 46 Parts 49 | . 44 4 1 Haulers Intercepted 1 | . 1 . . Recyclers Shooed . | . . . . Parts Field Recycled . | . . . . Retrieved Matter . | . . . . Parts Self-Destructed . | . . . . Prevented . | . . . . Kills | -11 -10 -10 -10 ------- Run | Yrd Mat Min Sub Combat Hostiles Destroyed 14 | . 13 1 . Guns 4 | . 4 . . Cannons 10 | . 9 1 . Classes Destroyed 8 | . 8 . . Builder 1 | . 1 . . Hauler 1 | . 1 . . Recycler 1 | . 1 . . Mechanic 1 | . 1 . . Operator 2 | . 2 . . Watcher 1 | . 1 . . Swarmer 6 | . 6 . . Grunt 9 | . 7 1 1 Best Kill Streak 5 | . 5 1 . Combat Bots Only 4 | . 4 1 . Max Kills in Single Turn 2 | . 2 1 1 Gunslinging . | . . . . Exploded . | . . . . Melee . | . . . . Uniques/NPCs Destroyed . | . . . . Combat | -11 -10 -10 -10 -------- Run | Yrd Mat Min Sub Hostile Shots Fired 89 | . 68 2 19 Missed 21 | . 16 2 3 Damage Taken 931 | . 613 . 318 Core 250 | . 112 . 138 Absorbed by Shields . | . . . . Core Remaining (%) 100 | 100 . . . Volleys Fired 72 | . 61 3 8 Largest 2 | . 2 2 2 Hottest 100 | . 100 75 75 Shots Fired 136 | . 114 6 16 Gun 60 | . 49 3 8 Cannon 76 | . 65 3 8 Launcher . | . . . . Special . | . . . . Kinetic 41 | . 30 3 8 Thermal 35 | . 35 . . Explosive . | . . . . Electromagnetic 60 | . 49 3 8 Robot Hit Streak 12 | . 12 2 9 Robot Miss Streak 6 | . 6 2 3 Penetration Max . | . . . . Secondary Targets 1 | . 1 . . Max Gunslinging Chain 1 | . 1 . . Shots Hit Robots 69 | . 54 3 12 Core Hits 25 | . 22 1 2 Critical Kills . | . . . . Critical Parts Destroyed . | . . . . Critical Strikes 3 | . 2 1 . Blast 2 | . 1 1 . Corrupt 1 | . 1 . . Melee Attacks 2 | . 2 . . Impact 2 | . 2 . . Slashing . | . . . . Piercing . | . . . . Sneak Attacks . | . . . . Combat Hostiles . | . . . . Follow-up Attacks . | . . . . Damage Inflicted 1165 | . 986 49 130 Guns 443 | . 382 15 46 Cannons 660 | . 542 34 84 Explosions 62 | . 62 . . Melee . | . . . . Ramming . | . . . . Kinetic 363 | . 245 34 84 Thermal 359 | . 359 . . Explosive . | . . . . Electromagnetic 443 | . 382 15 46 Impact . | . . . . Slashing . | . . . . Piercing . | . . . . Highest Corruption 1 | . 1 1 1 Average Corruption 1 | . 1 1 1 Corruption Purged . | . . . . Corruption Blocked . | . . . . Effects 10 | . 7 3 . Message Errors 2 | . 1 1 . Matter Fused 2 | . 2 . . Heat Flow Errors 1 | . 1 . . Energy Discharges 1 | . . 1 . Parts Fused 1 | . 1 . . Data Loss (minor) 1 | . 1 . . Data Loss (major) 1 | . . 1 . Misfires 1 | . 1 . . Overload Shots . | . . . . Overflow Damage . | . . . . Projectiles . | . . . . Explosions . | . . . . Melee . | . . . . Knockbacks 2 | . 1 . 1 Impact . | . . . . Kinetic 2 | . 1 . 1 Secondary . | . . . . Self-Inflicted Damage 24 | . 24 . . Shots 1 | . 1 . . Rammed . | . . . . Targets Rammed . | . . . . Kicked . | . . . . Crushed . | . . . . Highest Temperature 331 | . 331 45 . Average Temperature 90 | . 93 23 . Received Heat Transfer 186 | . 126 . 60 Effects 3 | . 3 . . Energy Bleed 1 | . 1 . . Interference 2 | . 2 . . Siege Activations . | . . . . Robots Corrupted 1 | . 1 . . Combat Hostiles . | . . . . Parts Fried 4 | . 4 . . Impact Corruptions . | . . . . Robots Melted . | . . . . Combat Hostiles . | . . . . Parts Melted . | . . . . Heat Transferred 679 | . 679 . . Parts Sabotaged . | . . . . Parts Stolen . | . . . . Parts Stripped . | . . . . Power Chain Reactions 1 | . 1 . . Alert | -11 -10 -10 -10 ------- Run | Yrd Mat Min Sub Peak Influence 329 | . 329 101 . Initial 101 | . . 101 . Average 121 | . 163 77 . Maximum Alert Level 1 | . 1 . . Low Security (%) 83 | 100 69 100 . Level 1 16 | . 30 . . Level 2 . | . . . . Level 3 . | . . . . Level 4 . | . . . . Level 5 . | . . . . High Security . | . . . . Max Security . | . . . . Squads Dispatched 3 | . 3 . . Investigation 1 | . 1 . . Extermination . | . . . . Reinforcement 2 | . 2 . . Assault . | . . . . Garrison . | . . . . Intercept . | . . . . Searches Triggered . | . . . . Construction Impeded . | . . . . Haulers Reinforced . | . . . . Active Scanning Responses . | . . . . Cargo Convoy Interrupts . | . . . . Stealth | -11 -10 -10 -10 --------- Run | Yrd Mat Min Sub Distress Signals 1 | . 1 . . Communications Jammed . | . . . . Distress Signals . | . . . . Times Spotted 25 | . 21 2 2 Peak Tracking Total 4 | . 4 2 2 Tactical Retreats 1 | . . 1 . Traps | -11 -10 -10 -10 ------- Run | Yrd Mat Min Sub Traps Triggered 2 | . 2 . . Indirectly . | . . . . Trap Hack Attempts . | . . . . Triggered . | . . . . Disarmed . | . . . . Reprogrammed . | . . . . Reused . | . . . . Traps Extracted . | . . . . Installed . | . . . . Triggered . | . . . . Machines | -11 -10 -10 -10 ---------- Run | Yrd Mat Min Sub Machines Disabled 4 | . 4 . . Max in Single Turn 1 | . 1 . . Machines Repaired . | . . . . Machines Dismantled . | . . . . Machines Sabotaged . | . . . . Overloaded Fab Kills . | . . . . Hacking | -11 -10 -10 -10 --------- Run | Yrd Mat Min Sub Machines Accessed 8 | . 7 1 . Terminals 4 | . 4 . . Fabricators . | . . . . Repair Stations 1 | . 1 . . Recycling Units 2 | . 2 . . Scanalyzers . | . . . . Garrison Access . | . . . . Total Hacks 15 | . 14 1 . Successful 7 | . 6 1 . Failed 8 | . 8 . . Catastrophic 2 | . 2 . . Database Lockouts . | . . . . Manual 10 | . 10 . . Terminals 7 | . 7 . . Fabricators . | . . . . Repair Stations 3 | . 3 . . Recycling Units 4 | . 4 . . Scanalyzers . | . . . . Garrison Access . | . . . . Terminal Hacks 1 | . . 1 . Open Door 1 | . . 1 . Fabricator Hacks . | . . . . Repair Station Hacks 2 | . 2 . . Scan Component 1 | . 1 . . Repair 1 | . 1 . . Recycling Unit Hacks 2 | . 2 . . Report Inventory 1 | . 1 . . Retrieve Components 1 | . 1 . . Scanalyzer . | . . . . Garrison Access Hacks . | . . . . Unauthorized Hacks 2 | . 2 . . Terminals 2 | . 2 . . Disrupt 1 | . 1 . . Operators 1 | . 1 . . Fabricators . | . . . . Repair Stations . | . . . . Recycling Units . | . . . . Scanalyzers . | . . . . Garrison Access . | . . . . Data Cores Recovered . | . . . . Used . | . . . . Hacking Detections 7 | . 7 . . Full Trace Events 1 | . 1 . . Feedback Events . | . . . . Feedback Blocked . | . . . . Robot Schematics Acquired . | . . . . Robots Built . | . . . . Authchips . | . . . . Time . | . . . . Total Robot Build Rating . | . . . . Part Schematics Acquired . | . . . . Parts Built . | . . . . Authchips . | . . . . Time . | . . . . Total Part Build Rating . | . . . . Parts Repaired . | . . . . Time 53 | . 53 . . Parts Recycled . | . . . . Recycled Matter . | . . . . Retrieved Matter . | . . . . Retrieved Components 1 | . 1 . . Parts Scanalyzed . | . . . . Part Schematics Acquired . | . . . . Parts Damaged . | . . . . Bothacking | -11 -10 -10 -10 ------------ Run | Yrd Mat Min Sub Used RIF Installer . | . . . . Robots Hacked . | . . . . Non-combat . | . . . . Combat . | . . . . Robot Hacks Applied . | . . . . Relay Couplers Released . | . . . . Fabnet Peak Effective % . | . . . . Robots Rewired . | . . . . Allies Hacked . | . . . . Hacks Repelled . | . . . . Allies | -11 -10 -10 -10 -------- Run | Yrd Mat Min Sub Total Allies 3 | . . 3 . Largest Group 3 | . . 3 3 Highest-Rated Group 40 | . . 40 40 Highest-Rated Ally 16 | . . 16 16 Total Orders 22 | . . 22 . STAY 5 | . . 5 . EXPLORE 8 | . . 8 . RETURN 9 | . . 9 . Ally Attacks 29 | . . 16 13 Total Damage 153 | . . 141 12 Kills . | . . . . Allies Corrupted . | . . . . Allies Melted . | . . . . Intel | -11 -10 -10 -10 ------- Run | Yrd Mat Min Sub Robot Analysis Total . | . . . . Derelict Logs Recovered 3 | . . 2 1 Drone Launches 10 | . . 10 . Drone Recoveries 10 | . . 10 . Exploration | -11 -10 -10 -10 ------------- Run | Yrd Mat Min Sub Turns Passed 1375 | 48 716 563 48 Spaces Moved 908 | 38 479 368 23 Core 2 | 2 . . . Treads . | . . . . Legs . | . . . . Wheels 906 | 36 479 368 23 Hover . | . . . . Flight . | . . . . Fastest Speed 50 | 50 90 90 105 Average Speed 96 | 97 98 93 105 Slowest Speed 105 | 100 105 105 105 Overloaded Moves . | . . . . Propulsion Burnouts . | . . . . Robots Hopped . | . . . . Cave-ins Triggered . | . . . . Exploration Rate (%) 49 | 4 91 96 6 Regions Visited 3 Branch Regions 2 Pre-discovered Areas 2 | . . 1 1 Known Exits Taken 2 | . 1 1 . Unknown Exits Taken 1 | 1 . . . Scrap Searched 1 | . . 1 . Spaces Dug 1 | . 1 . . Terrain Destroyed 4 | . 4 . . Melee 1 | . 1 . . Projectile . | . . . . AOE 3 | . 3 . . Terrain Rammed . | . . . . Walls Destroyed . | . . . . Machines Disabled . | . . . . Actions | -11 -10 -10 -10 --------- Run | Yrd Mat Min Sub Total 1259 | 45 602 581 31 Wait 218 | . 26 192 . Move 905 | 37 478 367 23 Hop . | . . . . Pick Up 32 | 2 20 10 . Fast Attach 11 | 6 3 2 . Attach 5 | . 5 . . Detach . | . . . . Swap 8 | . 5 3 . Drop 6 | . 2 4 . Fire 72 | . 61 3 8 Melee 2 | . 2 . . Ram . | . . . . Kick . | . . . . Crush . | . . . . Escape Stasis . | . . . . Rewire . | . . . . Trap . | . . . . Miscellaneous . | . . . . Route ------- -11/Scrapyard -10/Materials (discovered 4 exits: *Mat x2 / *Min x2) -10/Mines (discovered 3 exits: *Mat x2 / *Sub) -10/Subcaves History --------- Turn | Location | Event 7 | -11/Scrapyard | Discovered new exit (range 14) 49 | -11/Scrapyard | Entered Materials 302 | -10/Materials | Build established: Mutant 307 | -10/Materials | Discovered new exit (range 3) 308 | -10/Materials | Discovered new exit (range 9) 309 | -10/Materials | Identified exit to Mines 315 | -10/Materials | Identified exit to Materials 537 | -10/Materials | Discovered exit to Materials (range 16) 644 | -10/Materials | Discovered exit to Mines (range 8) 765 | -10/Materials | Entered Mines 771 | -10/Mines | Found the Drone Emporium 775 | -10/Mines | Found Prototype Device 775 | -10/Mines | Identified Sensor Drone Bay 777 | -10/Mines | Met a Derelict bent on vengeance 817 | -10/Mines | Discovered exit to Materials (range 54) 1050 | -10/Mines | Learned Materials emergency access door positions 1070 | -10/Mines | Learned 4 Materials zone layouts 1094 | -10/Mines | Learned location of Storage (-8) 1110 | -10/Mines | Assisted by bots powering up and referring to "LRC-V3" 1114 | -10/Mines | Discovered exit to Materials (range 13) 1267 | -10/Mines | Discovered new exit (range 10) 1276 | -10/Mines | Identified exit to Subcaves 1328 | -10/Mines | Entered Subcaves 1328 | -10/Subcaves | Accompanied by 3 allies 1338 | -10/Subcaves | Learned location of Zion (-6) 1342 | -10/Subcaves | Core integrity fell below 50% 1375 | -10/Subcaves | Core integrity fell below 20% 1376 | -10/Subcaves | Destroyed by X6-LOD(R) with Subdweller Machine Gun Last Messages --------------- Acquired Heat Sink. K-01 Serf collects debris. Acquired 2 matter. EXIT=FOUND EXIT=IDENTIFIED: SUBCAVES System corrupted: Substantial component data lost. U-05 Engineer lays Concrete. U-05 Engineer builds a Wall. T-07 Excavator is excavating. U-05 Engineer lays Concrete. LOCATION=SUBCAVES AMBIENT_HEAT=-10 GOAL=ESCAPE Acquired derelict log, extracted data. World map updated: -6/Zion. Mercenary 1a destroyed. Trooper 1a destroyed. Subatomizers dissect the Aluminum Leg. X6-LOD(R) knocked back. Map ----- +----------------------------------------------------+ | ?????????????????????????????????????????????????? | | ?????????????????????????????????????????????????? | | ?????????????????????????????????????????????????? | | ?????????????????????????????????????????????????? | | ?????????????????????????????????????????????????? | | ?????????????????????????????????????????????????? | | ?????????????????????????????????????????????????? | | ?????????????????????????????????????????????????? | | ?????????????????????????????????????????????????? | | ?????????????????????????????????????????????????? | | ?????????????????????????????????????????????????? | | ?????????????????????????????????????????????????? | | ?????????????????????????????????????????????????? | | ?????????????????????????###?????????????????????? | | ????????????????????????# ##????????????????????? | | ???????????????????????? ##???????????????????? | | ???????????????????????? ##??????????????????? | | ???????????????????????? ##?????????????????? | | ???????????????????????? #?????????????????? | | ???????????????????????? #?????????????????? | | ????????????????????????# """"#?????????????????? | | ??????????????????####?## " #??????????????????? | | ??????????????????# ### " ##?????????????????? | | ??????????????????# %%""""###???????????????? | | ???? ####?????????# " "" #??????????????? | | ???? ?????#### @ R"" ""#?????????????? | | ??? ????# *%%!= ""#??????????????? | | ????? ??## gR"% "" #??????????????? | | ????????# ## "" #??????????????? | | ????????# ###### #?????????????? | | ????????## ##?????##### #?????????????? | | ?????????# ## ####???????????????????????? | | ?????????#??# ##"##??????????????????????? | | ?????????# ## "" ##?????????????????????? | | ?????????# #?### #?????????????????????? | | ???????# #???# ### ##?????????????????????? | | ??????# ????# ## #??????????????????????? | | ??????## ?????# ### #??????????????????????? | | ???????####??????# ## #??????????????????????? | | ?????????????????# ## #??????????????????????? | | ?????????????????## #??????????????????????? | | ??????????????????# #??????????????????????? | | ??????????????????# ?????????????????????? | | ?????????????????# ????????????????????? | | ?????????????????### ???????????????????? | | ?????????????????? #?????????????????? | | ????????????????? ????????????????? | | ???????????????? # ##???????????????? | | ???????????????# ##### ## ##????????????????? | | ???????????????# ???? #?# ##?????????????????? | +----------------------------------------------------+ Best States ------------- Heat Dissipation 39 Energy Generation 10 Energy Capacity 250 Matter Stores 300 Matter Capacity 300 Sight Range 16 Terrain Scan Density 10 Evasion (%) 42 Item Schematics ----------------- None Robot Schematics ------------------ None Fabricated ------------ Nothing Alien Tech Used ----------------- None Achievements -------------- None Challenges ------------ None Game ------ Seed ClaymoresMeleeBeacon Manual? 0 Play Time 01:02:49 Cumulative 229.8 hours Start 2024.12.09 @ 23:17:56 End 2024.12.10 @ 11:41:36 Sessions 3 Manual Loads 0 Difficulty Rogue Special Mode None Game No. 5 Rogue 1 Adventurer 4 Explorer 0 Win Type - Total 0 Types 0/0/0/0/0/0/0/0/0 Lore% 16 Gallery% 36 Achievement% 37 Wizard Run 0 Options --------- Layout 1 ASCII 0 Keyboard 0 Movement Mouse Keybinds 0 Fullscreen 1 Font 24/Smallcaps Map View 50x35 Zoom Use 0% Tactical HUD 0 Map Filters NONE Filters NONE Steam 1 RUN: 4e7ce8db-da38-4e60-8dd9-156c35ae3004